[Event "Titled Tuesday Blitz August 1 Early 2023"]
[White "Cherniaiev, Tykhon"]
[Black "Megaranto, Susanto"]
[WhiteFideId "14182360"]
[BlackFideId "7101384"]
[WhiteElo "2767"]
[BlackElo "2974"]
[Result "0-1"]
[Round "4"]
[TimeControl "180+1"]
[Date "2023.08.01"]
[WhiteClock "0:00:14"]
[BlackClock "0:00:49"]
[Board "13"]

1. Nf3 {[%clk 0:03:00]}  Nf6 {[%clk 0:02:59]} 2. d4 {[%clk 0:02:59]}  e6 {[%clk 0:02:57]} 3. c4 {[%clk 0:02:59]}  Bb4+ {[%clk 0:02:57]} 4. Bd2 {[%clk 0:02:59]}  a5 {[%clk 0:02:57]} 5. g3 {[%clk 0:02:59]}  b6 {[%clk 0:02:57]} 6. Bg2 {[%clk 0:02:59]}  Bb7 {[%clk 0:02:58]} 7. O-O {[%clk 0:02:59]}  O-O {[%clk 0:02:58]} 8. a3 {[%clk 0:02:59]}  Bxd2 {[%clk 0:02:58]} 9. Nbxd2 {[%clk 0:02:59]}  d6 {[%clk 0:02:57]} 10. Qc2 {[%clk 0:02:59]}  Nbd7 {[%clk 0:02:56]} 11. Rad1 {[%clk 0:02:59]}  Qe7 {[%clk 0:02:52]} 12. e4 {[%clk 0:02:46]}  e5 {[%clk 0:02:52]} 13. d5 {[%clk 0:02:46]}  a4 {[%clk 0:02:51]} 14. Nh4 {[%clk 0:02:46]}  g6 {[%clk 0:02:48]} 15. Nb1 {[%clk 0:02:43]}  Nc5 {[%clk 0:02:46]} 16. Nc3 {[%clk 0:02:41]}  Nh5 {[%clk 0:02:29]} 17. Rfe1 {[%clk 0:02:32]}  Bc8 {[%clk 0:02:27]} 18. Qd2 {[%clk 0:02:25]}  Nb3 {[%clk 0:02:22]} 19. Qh6 {[%clk 0:02:22]}  Nd4 {[%clk 0:02:17]} 20. Nf3 {[%clk 0:02:19]}  Nb3 {[%clk 0:02:05]} 21. Nh4 {[%clk 0:02:18]}  f6 {[%clk 0:02:00]} 22. Nf5 {[%clk 0:01:53]}  Qf7 {[%clk 0:01:56]} 23. Nh4 {[%clk 0:01:25]}  Bd7 {[%clk 0:01:50]} 24. Bf3 {[%clk 0:01:11]}  Ng7 {[%clk 0:01:45]} 25. Bg2 {[%clk 0:01:00]}  g5 {[%clk 0:01:39]} 26. Nf3 {[%clk 0:00:55]}  Qg6 {[%clk 0:01:39]} 27. Qxg6 {[%clk 0:00:55]}  hxg6 {[%clk 0:01:40]} 28. Nd2 {[%clk 0:00:53]}  Nc5 {[%clk 0:01:38]} 29. Rf1 {[%clk 0:00:31]}  g4 {[%clk 0:01:37]} 30. f3 {[%clk 0:00:29]}  gxf3 {[%clk 0:01:38]} 31. Nxf3 {[%clk 0:00:28]}  Rab8 {[%clk 0:01:22]} 32. Rf2 {[%clk 0:00:25]}  b5 {[%clk 0:01:22]} 33. cxb5 {[%clk 0:00:26]}  Bxb5 {[%clk 0:01:23]} 34. Nxb5 {[%clk 0:00:27]}  Rxb5 {[%clk 0:01:23]} 35. Nh4 {[%clk 0:00:25]}  g5 {[%clk 0:01:18]} 36. Ng6 {[%clk 0:00:20]}  Rf7 {[%clk 0:01:18]} 37. Rdf1 {[%clk 0:00:16]}  Ne8 {[%clk 0:01:13]} 38. Bh3 {[%clk 0:00:14]}  Nxe4 {[%clk 0:01:02]} 39. Re2 {[%clk 0:00:06]}  Nc5 {[%clk 0:01:00]} 40. Bf5 {[%clk 0:00:06]}  Ng7 {[%clk 0:00:58]} 41. h4 {[%clk 0:00:03]}  Nxf5 {[%clk 0:00:55]} 42. Rxf5 {[%clk 0:00:04]}  Kg7 {[%clk 0:00:55]} 43. h5 {[%clk 0:00:04]}  Nb3 {[%clk 0:00:53]} 44. Ref2 {[%clk 0:00:04]}  Nd4 {[%clk 0:00:53]} 45. h6+ {[%clk 0:00:03]}  Kxg6 {[%clk 0:00:53]} 46. h7 {[%clk 0:00:04]}  Kxh7 {[%clk 0:00:50]} 47. Rxf6 {[%clk 0:00:04]}  Rxf6 {[%clk 0:00:50]} 48. Rxf6 {[%clk 0:00:05]}  Kg7 {[%clk 0:00:47]} 49. Rf2 {[%clk 0:00:04]}  Rxd5 {[%clk 0:00:47]} 50. Kg2 {[%clk 0:00:03]}  Rc5 {[%clk 0:00:47]} 51. Kh3 {[%clk 0:00:03]}  Rc2 {[%clk 0:00:47]} 52. Rf1 {[%clk 0:00:04]}  Rxb2 {[%clk 0:00:47]} 53. Kg4 {[%clk 0:00:04]}  Kg6 {[%clk 0:00:48]} 54. Rh1 {[%clk 0:00:04]}  Rb3 {[%clk 0:00:43]} 55. Rh2 {[%clk 0:00:05]}  Nf5 {[%clk 0:00:41]} 56. Rh3 {[%clk 0:00:01]}  Rxg3+ {[%clk 0:00:39]} 57. Rxg3 {[%clk 0:00:01]}  Nxg3 {[%clk 0:00:40]} 58. Kxg3 {[%clk 0:00:02]}  Kf5 {[%clk 0:00:41]} 59. Kf3 {[%clk 0:00:03]}  d5 {[%clk 0:00:41]} 60. Kg3 {[%clk 0:00:04]}  c5 {[%clk 0:00:42]} 61. Kf3 {[%clk 0:00:05]}  c4 {[%clk 0:00:43]} 62. Ke3 {[%clk 0:00:06]}  d4+ {[%clk 0:00:43]} 63. Ke2 {[%clk 0:00:07]}  e4 {[%clk 0:00:44]} 64. Kd2 {[%clk 0:00:07]}  Kf4 {[%clk 0:00:45]} 65. Ke2 {[%clk 0:00:08]}  g4 {[%clk 0:00:46]} 66. Kf2 {[%clk 0:00:09]}  c3 {[%clk 0:00:46]} 67. Kg2 {[%clk 0:00:10]}  d3 {[%clk 0:00:47]} 68. Kf2 {[%clk 0:00:11]}  e3+ {[%clk 0:00:48]} 69. Kf1 {[%clk 0:00:11]}  g3 {[%clk 0:00:49]} 70. Ke1 {[%clk 0:00:12]}  Kf3 {[%clk 0:00:49]} 71. Kf1 {[%clk 0:00:13]}  c2 {[%clk 0:00:49]} 72. Ke1 {[%clk 0:00:14]}  c1=Q# {[%clk 0:00:49]} 0-1


[Site "https://www.chess.com"]

[Event "Titled Tuesday Blitz August 1 Early 2023"]
[White "Bok, Benjamin"]
[Black "Matinian, Nikita"]
[WhiteFideId "1017063"]
[BlackFideId "24129100"]
[WhiteElo "2959"]
[BlackElo "2747"]
[Result "1-0"]
[Round "4"]
[TimeControl "180+1"]
[Date "2023.08.01"]
[WhiteClock "0:00:23"]
[BlackClock "0:00:06"]
[Board "14"]

1. d4 {[%clk 0:02:44]}  Nf6 {[%clk 0:02:59]} 2. c4 {[%clk 0:02:44]}  g6 {[%clk 0:02:59]} 3. g3 {[%clk 0:02:44]}  Bg7 {[%clk 0:02:59]} 4. Bg2 {[%clk 0:02:45]}  O-O {[%clk 0:03:00]} 5. Nc3 {[%clk 0:02:45]}  d6 {[%clk 0:03:00]} 6. Nf3 {[%clk 0:02:46]}  c6 {[%clk 0:03:01]} 7. e4 {[%clk 0:02:45]}  Bg4 {[%clk 0:03:00]} 8. O-O {[%clk 0:02:44]}  Nfd7 {[%clk 0:02:57]} 9. Be3 {[%clk 0:02:42]}  Na6 {[%clk 0:02:56]} 10. h3 {[%clk 0:02:41]}  Bxf3 {[%clk 0:02:56]} 11. Bxf3 {[%clk 0:02:40]}  e5 {[%clk 0:02:56]} 12. d5 {[%clk 0:02:37]}  c5 {[%clk 0:02:37]} 13. h4 {[%clk 0:02:27]}  f5 {[%clk 0:02:34]} 14. Kg2 {[%clk 0:02:22]}  Nc7 {[%clk 0:02:30]} 15. h5 {[%clk 0:02:13]}  Ne8 {[%clk 0:02:17]} 16. hxg6 {[%clk 0:02:12]}  hxg6 {[%clk 0:02:16]} 17. Rh1 {[%clk 0:01:50]}  Ndf6 {[%clk 0:02:05]} 18. Qe2 {[%clk 0:01:44]}  Qd7 {[%clk 0:01:57]} 19. Rh2 {[%clk 0:01:28]}  fxe4 {[%clk 0:01:56]} 20. Nxe4 {[%clk 0:01:27]}  Nxe4 {[%clk 0:01:52]} 21. Bxe4 {[%clk 0:01:28]}  Nf6 {[%clk 0:01:53]} 22. Bxg6 {[%clk 0:01:26]}  Qg4 {[%clk 0:01:44]} 23. Bh7+ {[%clk 0:01:15]}  Kf7 {[%clk 0:01:43]} 24. f3 {[%clk 0:01:14]}  Qd7 {[%clk 0:01:38]} 25. Bd3 {[%clk 0:01:11]}  a6 {[%clk 0:01:29]} 26. Qc2 {[%clk 0:01:08]}  Ke7 {[%clk 0:01:15]} 27. Bf5 {[%clk 0:01:06]}  Qe8 {[%clk 0:00:53]} 28. b4 {[%clk 0:01:05]}  cxb4 {[%clk 0:00:52]} 29. Rb1 {[%clk 0:01:06]}  a5 {[%clk 0:00:49]} 30. a3 {[%clk 0:01:06]}  Kd8 {[%clk 0:00:21]} 31. axb4 {[%clk 0:01:03]}  a4 {[%clk 0:00:21]} 32. Bb6+ {[%clk 0:00:59]}  Ke7 {[%clk 0:00:21]} 33. Be6 {[%clk 0:00:47]}  e4 {[%clk 0:00:19]} 34. Re1 {[%clk 0:00:43]}  a3 {[%clk 0:00:18]} 35. c5 {[%clk 0:00:39]}  Qb5 {[%clk 0:00:10]} 36. cxd6+ {[%clk 0:00:38]}  Ke8 {[%clk 0:00:10]} 37. d7+ {[%clk 0:00:30]}  Nxd7 {[%clk 0:00:10]} 38. Bxd7+ {[%clk 0:00:23]}  Kxd7 {[%clk 0:00:09]} 39. Qc7+ {[%clk 0:00:22]}  Ke8 {[%clk 0:00:06]} 40. Rxe4+ {[%clk 0:00:23]} 1-0


[Site "https://www.chess.com"]

[Event "Titled Tuesday Blitz August 1 Early 2023"]
[White "Terry, Renato"]
[Black "Weetik, Vjacheslav"]
[WhiteFideId "3803457"]
[BlackFideId "4153472"]
[WhiteElo "2951"]
[BlackElo "2744"]
[Result "1-0"]
[Round "4"]
[TimeControl "180+1"]
[Date "2023.08.01"]
[WhiteClock "0:00:04"]
[BlackClock "0:00:00"]
[Board "15"]

1. d4 {[%clk 0:02:59]}  Nf6 {[%clk 0:02:59]} 2. Nf3 {[%clk 0:02:59]}  g6 {[%clk 0:02:59]} 3. Bg5 {[%clk 0:02:59]}  Bg7 {[%clk 0:02:59]} 4. c3 {[%clk 0:02:59]}  O-O {[%clk 0:02:57]} 5. Nbd2 {[%clk 0:03:00]}  d5 {[%clk 0:02:58]} 6. e3 {[%clk 0:03:00]}  Nbd7 {[%clk 0:02:58]} 7. Be2 {[%clk 0:02:59]}  c5 {[%clk 0:02:54]} 8. O-O {[%clk 0:02:59]}  Re8 {[%clk 0:02:55]} 9. h3 {[%clk 0:02:47]}  e5 {[%clk 0:02:54]} 10. Re1 {[%clk 0:02:38]}  e4 {[%clk 0:02:33]} 11. Nh2 {[%clk 0:02:38]}  cxd4 {[%clk 0:02:18]} 12. cxd4 {[%clk 0:02:38]}  h6 {[%clk 0:02:14]} 13. Bf4 {[%clk 0:02:36]}  Nf8 {[%clk 0:01:55]} 14. Rc1 {[%clk 0:02:36]}  Ne6 {[%clk 0:01:52]} 15. Bg3 {[%clk 0:02:14]}  Qb6 {[%clk 0:01:41]} 16. Qb3 {[%clk 0:02:12]}  Bd7 {[%clk 0:01:41]} 17. Qxb6 {[%clk 0:01:55]}  axb6 {[%clk 0:01:41]} 18. a3 {[%clk 0:01:56]}  Rec8 {[%clk 0:01:24]} 19. Nb1 {[%clk 0:01:51]}  Bc6 {[%clk 0:00:55]} 20. Be5 {[%clk 0:01:31]}  Ne8 {[%clk 0:00:51]} 21. Bxg7 {[%clk 0:01:31]}  Kxg7 {[%clk 0:00:52]} 22. Nc3 {[%clk 0:01:30]}  Nd6 {[%clk 0:00:49]} 23. Nf1 {[%clk 0:01:24]}  f5 {[%clk 0:00:48]} 24. g3 {[%clk 0:01:22]}  g5 {[%clk 0:00:48]} 25. f4 {[%clk 0:01:21]}  Kf6 {[%clk 0:00:35]} 26. Kf2 {[%clk 0:01:16]}  Rg8 {[%clk 0:00:34]} 27. Nd2 {[%clk 0:01:07]}  Rg7 {[%clk 0:00:27]} 28. Rh1 {[%clk 0:00:50]}  Rag8 {[%clk 0:00:26]} 29. Rcg1 {[%clk 0:00:50]}  b5 {[%clk 0:00:26]} 30. h4 {[%clk 0:00:36]}  gxf4 {[%clk 0:00:10]} 31. gxf4 {[%clk 0:00:37]}  Rxg1 {[%clk 0:00:09]} 32. Rxg1 {[%clk 0:00:38]}  Rxg1 {[%clk 0:00:09]} 33. Kxg1 {[%clk 0:00:39]}  Nc4 {[%clk 0:00:09]} 34. Nxc4 {[%clk 0:00:26]}  bxc4 {[%clk 0:00:09]} 35. Kf2 {[%clk 0:00:12]}  Ke7 {[%clk 0:00:09]} 36. Ke1 {[%clk 0:00:11]}  Kd6 {[%clk 0:00:09]} 37. Kd2 {[%clk 0:00:12]}  Nf8 {[%clk 0:00:06]} 38. Bh5 {[%clk 0:00:11]}  Ke7 {[%clk 0:00:04]} 39. Kc2 {[%clk 0:00:09]}  Nh7 {[%clk 0:00:04]} 40. Kd2 {[%clk 0:00:08]}  Nf6 {[%clk 0:00:05]} 41. Bd1 {[%clk 0:00:09]}  Kd6 {[%clk 0:00:04]} 42. Ne2 {[%clk 0:00:09]}  Be8 {[%clk 0:00:04]} 43. Ng3 {[%clk 0:00:09]}  Bg6 {[%clk 0:00:05]} 44. Kc3 {[%clk 0:00:09]}  Kc6 {[%clk 0:00:05]} 45. Kb4 {[%clk 0:00:10]}  Kb6 {[%clk 0:00:05]} 46. a4 {[%clk 0:00:10]}  Ng4 {[%clk 0:00:04]} 47. a5+ {[%clk 0:00:11]}  Kc6 {[%clk 0:00:04]} 48. Nf1 {[%clk 0:00:02]}  Nf2 {[%clk 0:00:04]} 49. Ba4+ {[%clk 0:00:03]}  Kd6 {[%clk 0:00:04]} 50. Kc3 {[%clk 0:00:02]}  Bh5 {[%clk 0:00:03]} 51. Kd2 {[%clk 0:00:02]}  Bg4 {[%clk 0:00:04]} 52. Ng3 {[%clk 0:00:02]}  Nd3 {[%clk 0:00:04]} 53. Kc3 {[%clk 0:00:03]}  Nf2 {[%clk 0:00:03]} 54. Bc2 {[%clk 0:00:03]}  Kc6 {[%clk 0:00:03]} 55. Ba4+ {[%clk 0:00:03]}  Kd6 {[%clk 0:00:03]} 56. Kd2 {[%clk 0:00:03]}  Bd1 {[%clk 0:00:03]} 57. Bxd1 {[%clk 0:00:02]}  Kc6 {[%clk 0:00:03]} 58. Ba4+ {[%clk 0:00:03]}  Kd6 {[%clk 0:00:03]} 59. Ke2 {[%clk 0:00:03]}  Nd3 {[%clk 0:00:03]} 60. Nxf5+ {[%clk 0:00:03]}  Kc7 {[%clk 0:00:04]} 61. Nxh6 {[%clk 0:00:02]}  Nxb2 {[%clk 0:00:04]} 62. Bc2 {[%clk 0:00:03]}  Nd3 {[%clk 0:00:03]} 63. Nf5 {[%clk 0:00:02]}  Nb4 {[%clk 0:00:03]} 64. h5 {[%clk 0:00:03]}  Nxc2 {[%clk 0:00:00]} 65. h6 {[%clk 0:00:04]} 1-0


[Site "https://www.chess.com"]

[Event "Titled Tuesday Blitz August 1 Early 2023"]
[White "Popilski, Gil"]
[Black "Demidov, Mikhail"]
[WhiteFideId "2809060"]
[BlackFideId "4197143"]
[WhiteElo "2649"]
[BlackElo "2916"]
[Result "0-1"]
[Round "4"]
[TimeControl "180+1"]
[Date "2023.08.01"]
[WhiteClock "0:00:00"]
[BlackClock "0:00:35"]
[Board "18"]

1. e4 {[%clk 0:03:00]}  Nf6 {[%clk 0:02:57]} 2. Nc3 {[%clk 0:02:55]}  d5 {[%clk 0:02:53]} 3. exd5 {[%clk 0:02:54]}  Nxd5 {[%clk 0:02:53]} 4. Bc4 {[%clk 0:02:54]}  Nb6 {[%clk 0:02:53]} 5. Bb3 {[%clk 0:02:54]}  g6 {[%clk 0:02:47]} 6. a4 {[%clk 0:02:50]}  c6 {[%clk 0:02:38]} 7. Qf3 {[%clk 0:02:47]}  e6 {[%clk 0:02:35]} 8. h4 {[%clk 0:02:09]}  h6 {[%clk 0:02:33]} 9. Nge2 {[%clk 0:01:49]}  Bg7 {[%clk 0:02:32]} 10. d4 {[%clk 0:01:49]}  Nd5 {[%clk 0:02:24]} 11. Ne4 {[%clk 0:01:42]}  O-O {[%clk 0:02:02]} 12. Qg3 {[%clk 0:01:27]}  Nd7 {[%clk 0:01:45]} 13. h5 {[%clk 0:01:01]}  f5 {[%clk 0:01:21]} 14. Bxh6 {[%clk 0:00:27]}  fxe4 {[%clk 0:01:20]} 15. Bxg7 {[%clk 0:00:25]}  Kxg7 {[%clk 0:01:20]} 16. Qxg6+ {[%clk 0:00:20]}  Kh8 {[%clk 0:01:20]} 17. Qh6+ {[%clk 0:00:20]}  Kg8 {[%clk 0:01:21]} 18. Qg6+ {[%clk 0:00:20]}  Kh8 {[%clk 0:01:21]} 19. Qh6+ {[%clk 0:00:20]}  Kg8 {[%clk 0:01:21]} 20. Qxe6+ {[%clk 0:00:21]}  Rf7 {[%clk 0:01:16]} 21. Nf4 {[%clk 0:00:15]}  Nf8 {[%clk 0:00:46]} 22. Qh6 {[%clk 0:00:00]}  Rh7 {[%clk 0:00:35]} 0-1


[Site "https://www.chess.com"]

[Event "Titled Tuesday Blitz August 1 Early 2023"]
[White "Nguyen, Ngoc Truong Son"]
[Black "Demin, Vladimir"]
[WhiteFideId "12401110"]
[BlackFideId "4167457"]
[WhiteElo "2907"]
[BlackElo "2574"]
[Result "1-0"]
[Round "4"]
[TimeControl "180+1"]
[Date "2023.08.01"]
[WhiteClock "0:00:20"]
[BlackClock "0:00:05"]
[Board "20"]

1. d4 {[%clk 0:02:56]}  Nf6 {[%clk 0:02:59]} 2. c4 {[%clk 0:02:56]}  e6 {[%clk 0:02:59]} 3. Nc3 {[%clk 0:02:56]}  Bb4 {[%clk 0:02:59]} 4. Qc2 {[%clk 0:02:55]}  O-O {[%clk 0:02:58]} 5. a3 {[%clk 0:02:48]}  Bxc3+ {[%clk 0:02:58]} 6. Qxc3 {[%clk 0:02:49]}  d5 {[%clk 0:02:57]} 7. Nf3 {[%clk 0:02:48]}  dxc4 {[%clk 0:02:45]} 8. Qxc4 {[%clk 0:02:49]}  a6 {[%clk 0:02:41]} 9. Bg5 {[%clk 0:02:46]}  b5 {[%clk 0:02:40]} 10. Qc2 {[%clk 0:02:44]}  Bb7 {[%clk 0:02:38]} 11. e3 {[%clk 0:02:44]}  Nbd7 {[%clk 0:02:35]} 12. Bd3 {[%clk 0:02:33]}  h6 {[%clk 0:02:35]} 13. Bxf6 {[%clk 0:02:31]}  Nxf6 {[%clk 0:02:36]} 14. Ne5 {[%clk 0:02:26]}  Rc8 {[%clk 0:02:26]} 15. b4 {[%clk 0:02:15]}  Bd5 {[%clk 0:02:04]} 16. O-O {[%clk 0:02:11]}  Nd7 {[%clk 0:01:59]} 17. Nxd7 {[%clk 0:01:56]}  Qxd7 {[%clk 0:02:00]} 18. a4 {[%clk 0:01:46]}  c6 {[%clk 0:01:57]} 19. e4 {[%clk 0:01:40]}  Bc4 {[%clk 0:01:56]} 20. Bxc4 {[%clk 0:01:41]}  bxc4 {[%clk 0:01:57]} 21. Qxc4 {[%clk 0:01:41]}  Rb8 {[%clk 0:01:54]} 22. h3 {[%clk 0:01:02]}  Rfd8 {[%clk 0:01:53]} 23. Rfd1 {[%clk 0:01:01]}  Rb6 {[%clk 0:01:51]} 24. Rab1 {[%clk 0:00:58]}  Rdb8 {[%clk 0:01:48]} 25. Qc5 {[%clk 0:00:45]}  Qb7 {[%clk 0:01:40]} 26. d5 {[%clk 0:00:45]}  cxd5 {[%clk 0:01:29]} 27. exd5 {[%clk 0:00:46]}  Rxb4 {[%clk 0:01:07]} 28. Rxb4 {[%clk 0:00:34]}  Qxb4 {[%clk 0:01:07]} 29. Qxb4 {[%clk 0:00:26]}  Rxb4 {[%clk 0:01:08]} 30. d6 {[%clk 0:00:27]}  Rb8 {[%clk 0:01:08]} 31. Rc1 {[%clk 0:00:24]}  Kf8 {[%clk 0:00:51]} 32. a5 {[%clk 0:00:23]}  Ke8 {[%clk 0:00:42]} 33. Rc6 {[%clk 0:00:23]}  Ra8 {[%clk 0:00:38]} 34. f4 {[%clk 0:00:21]}  g6 {[%clk 0:00:33]} 35. Kf2 {[%clk 0:00:21]}  Kd7 {[%clk 0:00:33]} 36. Rb6 {[%clk 0:00:21]}  Ra7 {[%clk 0:00:33]} 37. Ke3 {[%clk 0:00:20]}  f6 {[%clk 0:00:24]} 38. g3 {[%clk 0:00:19]}  Ra8 {[%clk 0:00:23]} 39. Ke4 {[%clk 0:00:19]}  Ra7 {[%clk 0:00:20]} 40. g4 {[%clk 0:00:19]}  Ra8 {[%clk 0:00:19]} 41. g5 {[%clk 0:00:19]}  hxg5 {[%clk 0:00:15]} 42. fxg5 {[%clk 0:00:20]}  fxg5 {[%clk 0:00:14]} 43. Ke5 {[%clk 0:00:20]}  Ra7 {[%clk 0:00:14]} 44. Rb3 {[%clk 0:00:20]}  Ra8 {[%clk 0:00:08]} 45. Rb7+ {[%clk 0:00:20]}  Kc6 {[%clk 0:00:08]} 46. Rc7+ {[%clk 0:00:20]}  Kb5 {[%clk 0:00:05]} 47. d7 {[%clk 0:00:20]} 1-0


[Site "https://www.chess.com"]

[Event "Titled Tuesday Blitz August 1 Early 2023"]
[White "Koellner, Ruben Gideon"]
[Black "Hakobyan, Aram"]
[WhiteFideId "12993093"]
[BlackFideId "13306677"]
[WhiteElo "2696"]
[BlackElo "2945"]
[Result "1-0"]
[Round "4"]
[TimeControl "180+1"]
[Date "2023.08.01"]
[WhiteClock "0:00:09"]
[BlackClock "0:00:01"]
[Board "24"]

1. d4 {[%clk 0:03:00]}  g6 {[%clk 0:02:59]} 2. Nf3 {[%clk 0:03:00]}  Bg7 {[%clk 0:02:59]} 3. Nbd2 {[%clk 0:03:00]}  Nf6 {[%clk 0:02:59]} 4. e4 {[%clk 0:03:00]}  O-O {[%clk 0:02:58]} 5. c3 {[%clk 0:03:01]}  d6 {[%clk 0:02:53]} 6. Bc4 {[%clk 0:03:00]}  e6 {[%clk 0:02:48]} 7. O-O {[%clk 0:02:59]}  b6 {[%clk 0:02:49]} 8. Re1 {[%clk 0:02:59]}  Bb7 {[%clk 0:02:49]} 9. Qe2 {[%clk 0:02:59]}  Nbd7 {[%clk 0:02:48]} 10. Bd3 {[%clk 0:02:59]}  Re8 {[%clk 0:02:45]} 11. e5 {[%clk 0:02:58]}  dxe5 {[%clk 0:02:40]} 12. dxe5 {[%clk 0:02:56]}  Ng4 {[%clk 0:02:39]} 13. Be4 {[%clk 0:02:38]}  Bxe4 {[%clk 0:02:34]} 14. Nxe4 {[%clk 0:02:39]}  Ndxe5 {[%clk 0:02:29]} 15. Nxe5 {[%clk 0:02:22]}  Nxe5 {[%clk 0:02:26]} 16. Bg5 {[%clk 0:02:22]}  Qd3 {[%clk 0:02:20]} 17. Rad1 {[%clk 0:01:48]}  Qxe2 {[%clk 0:02:18]} 18. Rxe2 {[%clk 0:01:49]}  f5 {[%clk 0:01:46]} 19. Nf6+ {[%clk 0:01:39]}  Bxf6 {[%clk 0:01:45]} 20. Bxf6 {[%clk 0:01:39]}  Nf7 {[%clk 0:00:51]} 21. Rd7 {[%clk 0:01:36]}  Rac8 {[%clk 0:00:52]} 22. f4 {[%clk 0:01:30]}  h6 {[%clk 0:00:50]} 23. h4 {[%clk 0:01:27]}  e5 {[%clk 0:00:46]} 24. fxe5 {[%clk 0:01:15]}  Re6 {[%clk 0:00:46]} 25. Red2 {[%clk 0:01:15]}  Kf8 {[%clk 0:00:44]} 26. R2d5 {[%clk 0:01:02]}  Ke8 {[%clk 0:00:39]} 27. Rxf7 {[%clk 0:00:44]}  Kxf7 {[%clk 0:00:38]} 28. Rd7+ {[%clk 0:00:44]}  Ke8 {[%clk 0:00:30]} 29. Rg7 {[%clk 0:00:25]}  g5 {[%clk 0:00:27]} 30. h5 {[%clk 0:00:16]}  f4 {[%clk 0:00:21]} 31. Rh7 {[%clk 0:00:15]}  c5 {[%clk 0:00:18]} 32. Rxh6 {[%clk 0:00:13]}  Rc7 {[%clk 0:00:17]} 33. Rh8+ {[%clk 0:00:13]}  Kd7 {[%clk 0:00:16]} 34. Rh7+ {[%clk 0:00:12]}  Kc6 {[%clk 0:00:16]} 35. Rxc7+ {[%clk 0:00:13]}  Kxc7 {[%clk 0:00:16]} 36. h6 {[%clk 0:00:14]}  Re8 {[%clk 0:00:12]} 37. h7 {[%clk 0:00:14]}  g4 {[%clk 0:00:11]} 38. h8=Q {[%clk 0:00:15]}  Rxh8 {[%clk 0:00:12]} 39. Bxh8 {[%clk 0:00:15]}  Kd7 {[%clk 0:00:13]} 40. Kf2 {[%clk 0:00:15]}  Ke6 {[%clk 0:00:14]} 41. Bg7 {[%clk 0:00:15]}  c4 {[%clk 0:00:13]} 42. Bf6 {[%clk 0:00:14]}  b5 {[%clk 0:00:13]} 43. a3 {[%clk 0:00:15]}  a5 {[%clk 0:00:11]} 44. Bg7 {[%clk 0:00:11]}  a4 {[%clk 0:00:11]} 45. Bh8 {[%clk 0:00:11]}  Kf5 {[%clk 0:00:12]} 46. g3 {[%clk 0:00:08]}  f3 {[%clk 0:00:12]} 47. Ke3 {[%clk 0:00:09]}  Ke6 {[%clk 0:00:13]} 48. Bg7 {[%clk 0:00:07]}  Kf5 {[%clk 0:00:14]} 49. Bf8 {[%clk 0:00:06]}  Kxe5 {[%clk 0:00:14]} 50. Bc5 {[%clk 0:00:07]}  Kf5 {[%clk 0:00:10]} 51. Bd6 {[%clk 0:00:06]}  Ke6 {[%clk 0:00:03]} 52. Bb8 {[%clk 0:00:05]}  Kf5 {[%clk 0:00:03]} 53. Bc7 {[%clk 0:00:04]}  Ke6 {[%clk 0:00:03]} 54. Bb6 {[%clk 0:00:04]}  Kf5 {[%clk 0:00:03]} 55. Kd2 {[%clk 0:00:04]}  Ke4 {[%clk 0:00:04]} 56. Bf2 {[%clk 0:00:04]}  Kf5 {[%clk 0:00:04]} 57. Ke3 {[%clk 0:00:05]}  Ke5 {[%clk 0:00:04]} 58. Bg1 {[%clk 0:00:05]}  Kf5 {[%clk 0:00:01]} 59. Kd4 {[%clk 0:00:06]}  Kf6 {[%clk 0:00:01]} 60. Ke4 {[%clk 0:00:06]}  Kg5 {[%clk 0:00:01]} 61. Ke5 {[%clk 0:00:07]}  Kg6 {[%clk 0:00:01]} 62. Kf4 {[%clk 0:00:07]}  Kf6 {[%clk 0:00:01]} 63. Kxg4 {[%clk 0:00:08]}  f2 {[%clk 0:00:01]} 64. Bxf2 {[%clk 0:00:08]}  Ke5 {[%clk 0:00:02]} 65. Bd4+ {[%clk 0:00:08]}  Ke4 {[%clk 0:00:03]} 66. Bc5 {[%clk 0:00:08]}  Kd3 {[%clk 0:00:04]} 67. Bb4 {[%clk 0:00:09]}  Kc2 {[%clk 0:00:01]} 68. Kf4 {[%clk 0:00:09]} 1-0


[Site "https://www.chess.com"]

[Event "Titled Tuesday Blitz August 1 Early 2023"]
[White "Khachiyan, Melikset"]
[Black "Galchenko, Matvey"]
[WhiteFideId "13300512"]
[BlackFideId "24175480"]
[WhiteElo "2700"]
[BlackElo "2894"]
[Result "1-0"]
[Round "4"]
[TimeControl "180+1"]
[Date "2023.08.01"]
[WhiteClock "0:00:46"]
[BlackClock "0:00:00"]
[Board "25"]

1. e4 {[%clk 0:03:00]}  e6 {[%clk 0:02:58]} 2. d4 {[%clk 0:03:00]}  d5 {[%clk 0:02:58]} 3. Nc3 {[%clk 0:03:01]}  Bb4 {[%clk 0:02:58]} 4. e5 {[%clk 0:03:01]}  Ne7 {[%clk 0:02:58]} 5. a3 {[%clk 0:03:02]}  Bxc3+ {[%clk 0:02:57]} 6. bxc3 {[%clk 0:03:02]}  c5 {[%clk 0:02:57]} 7. Qg4 {[%clk 0:03:03]}  cxd4 {[%clk 0:02:55]} 8. Qxg7 {[%clk 0:03:02]}  Rg8 {[%clk 0:02:56]} 9. Qxh7 {[%clk 0:03:03]}  Qc7 {[%clk 0:02:57]} 10. Ne2 {[%clk 0:03:02]}  Nbc6 {[%clk 0:02:57]} 11. f4 {[%clk 0:03:01]}  Bd7 {[%clk 0:02:57]} 12. Qd3 {[%clk 0:02:56]}  dxc3 {[%clk 0:02:57]} 13. Rb1 {[%clk 0:02:40]}  d4 {[%clk 0:02:39]} 14. Nxd4 {[%clk 0:02:22]}  Nxd4 {[%clk 0:02:38]} 15. Qxd4 {[%clk 0:02:23]}  Nf5 {[%clk 0:02:39]} 16. Qf2 {[%clk 0:02:21]}  Qc6 {[%clk 0:02:36]} 17. Rg1 {[%clk 0:02:17]}  Qe4+ {[%clk 0:02:29]} 18. Qe2 {[%clk 0:02:13]}  Qd4 {[%clk 0:02:26]} 19. Qf2 {[%clk 0:02:10]}  Qe4+ {[%clk 0:02:22]} 20. Qe2 {[%clk 0:01:58]}  Bc6 {[%clk 0:01:14]} 21. Qxe4 {[%clk 0:01:57]}  Bxe4 {[%clk 0:01:14]} 22. Rb4 {[%clk 0:01:57]}  Bxc2 {[%clk 0:01:12]} 23. Rc4 {[%clk 0:01:57]}  Rd8 {[%clk 0:01:11]} 24. Be2 {[%clk 0:01:55]}  Nd4 {[%clk 0:00:57]} 25. Rxc3 {[%clk 0:01:52]}  Be4 {[%clk 0:00:54]} 26. g3 {[%clk 0:01:42]}  Nxe2 {[%clk 0:00:26]} 27. Kxe2 {[%clk 0:01:42]}  Bc6 {[%clk 0:00:22]} 28. Be3 {[%clk 0:01:39]}  a6 {[%clk 0:00:21]} 29. h4 {[%clk 0:01:31]}  Rg4 {[%clk 0:00:20]} 30. Kf2 {[%clk 0:01:28]}  f5 {[%clk 0:00:18]} 31. exf6 {[%clk 0:01:26]}  Kf7 {[%clk 0:00:18]} 32. Rgc1 {[%clk 0:01:19]}  Kxf6 {[%clk 0:00:18]} 33. Rxc6 {[%clk 0:01:18]}  bxc6 {[%clk 0:00:19]} 34. Rxc6 {[%clk 0:01:19]}  a5 {[%clk 0:00:19]} 35. Kf3 {[%clk 0:01:10]}  Rgg8 {[%clk 0:00:19]} 36. g4 {[%clk 0:01:09]}  Rd3 {[%clk 0:00:19]} 37. f5 {[%clk 0:01:08]}  Re8 {[%clk 0:00:13]} 38. Kf4 {[%clk 0:01:08]}  Rxa3 {[%clk 0:00:08]} 39. g5+ {[%clk 0:00:56]}  Kf7 {[%clk 0:00:09]} 40. Rc7+ {[%clk 0:00:57]}  Kg8 {[%clk 0:00:09]} 41. f6 {[%clk 0:00:56]}  e5+ {[%clk 0:00:06]} 42. Kf5 {[%clk 0:00:56]}  Rxe3 {[%clk 0:00:04]} 43. f7+ {[%clk 0:00:56]}  Kf8 {[%clk 0:00:05]} 44. fxe8=Q+ {[%clk 0:00:56]}  Kxe8 {[%clk 0:00:06]} 45. g6 {[%clk 0:00:53]}  Rf3+ {[%clk 0:00:04]} 46. Ke6 {[%clk 0:00:48]}  Kf8 {[%clk 0:00:05]} 47. h5 {[%clk 0:00:48]}  Rh3 {[%clk 0:00:03]} 48. Kf6 {[%clk 0:00:48]}  Rf3+ {[%clk 0:00:03]} 49. Kg5 {[%clk 0:00:48]}  Kg8 {[%clk 0:00:03]} 50. h6 {[%clk 0:00:47]}  Rg3+ {[%clk 0:00:04]} 51. Kf6 {[%clk 0:00:48]}  Rf3+ {[%clk 0:00:04]} 52. Ke6 {[%clk 0:00:45]}  Rf8 {[%clk 0:00:01]} 53. h7+ {[%clk 0:00:45]}  Kh8 {[%clk 0:00:00]} 54. g7+ {[%clk 0:00:46]} 1-0


[Site "https://www.chess.com"]